Cogmind - Beta 15 @@@ ROGUE MODE // 2025.07.27 @ 16:07:01 Player: Singularius Result: Destroyed by D-53 Grenadier with Mini Grenade Launcher Performance ------------- Evolutions (0) 0 Regions Visited (2) 400 Robots Destroyed (8) 40 Value Destroyed (186) 186 Prototype IDs (2) 40 Alien Tech Used (0) 0 Bonus (0) 0 TOTAL SCORE: 666 Bonus ------- None Cogmind --------- Core Integrity 0/250 Matter 168/300 Energy 261/280 System Corruption 0% Temperature Warm (176) Movement Walking (330) Ox3 Location -10/Mines Parts ------- > --- POWER (1) -------- Heavy Ion Engine > --- PROPULSION (2) --- Light Treads Aluminum Leg > --- UTILITY (2) ------ Heat Sink Large Storage Unit > --- WEAPON (2) ------- Advanced Beam Cannon Advanced Beam Cannon > --- INVENTORY (15) --- Ion Engine Ion Engine Aluminum Leg Aluminum Leg Small Storage Unit Seismic Detector Advanced Beam Cannon Advanced Beam Cannon Improved Light Cannon Improved Light Cannon Grenade Launcher Mining Laser Peak State ------------ > --- POWER ------------ Heavy Ion Engine > --- PROPULSION ------- Light Treads Light Treads > --- UTILITY ---------- Large Storage Unit Seismic Detector > --- WEAPON ----------- Advanced Beam Cannon Improved Light Cannon > --- INVENTORY -------- Ion Engine Ion Engine Aluminum Leg Aluminum Leg Aluminum Leg Heat Sink Small Storage Unit Seismic Detector Advanced Beam Cannon Advanced Beam Cannon Advanced Beam Cannon Improved Light Cannon Improved Light Cannon Grenade Launcher Mining Laser [Rating: 14] Favorites ----------- Power Ion Engine Engine Ion Engine Propulsion Light Treads Treads Light Treads Leg Aluminum Leg Utility Seismic Detector Device Seismic Detector Storage Large Storage Unit Weapon Light Assault Rifle Energy Cannon Advanced Beam Cannon Ballistic Gun Light Assault Rifle Ballistic Cannon Improved Light Cannon Launcher Grenade Launcher Build | -11 -10 -10 ------- Run | Yrd Mat Min Slots Evolved . | . . . Power . | . . . Propulsion . | . . . Utility . | . . . Weapon . | . . . Parts Attached 17 | 7 6 4 Power 3 | 1 2 . Engine 3 | 1 2 . Core . | . . . Reactor . | . . . Propulsion 3 | 2 . 1 Treads 2 | 2 . . Leg 1 | . . 1 Wheel . | . . . Hover . | . . . Flight . | . . . Utility 5 | 2 2 1 Device 3 | 1 1 1 Storage 2 | 1 1 . Processor . | . . . Hackware . | . . . Protection . | . . . Artifact . | . . . Weapon 6 | 2 2 2 Energy Gun . | . . . Energy Cannon 2 | . 1 1 Ballistic Gun 2 | 2 . . Ballistic Cannon 1 | . 1 . Launcher 1 | . . 1 Special Weapon . | . . . Impact Weapon . | . . . Slashing Weapon . | . . . Piercing Weapon . | . . . Special Melee Weapon . | . . . Unidentified Prototypes 2 | . 2 . Parts Lost 4 | . 1 3 Power 1 | . 1 . Propulsion 1 | . . 1 Utility 1 | . . 1 Weapon 1 | . . 1 Highest Loss Streak 3 | . 1 3 To Critical Strikes . | . . . Average Backups 9 | 3 9 14 Power 1 | . 1 2 Propulsion 3 | 1 3 2 Utility 2 | . 2 2 Weapon 2 | . 2 6 Tool/Special . | . . . Unused Backups 13 | . 4 9 Power 2 | . . 2 Propulsion 4 | . 2 2 Utility . | . . . Weapon 7 | . 2 5 Tool/Special . | . . . Average Slot Usage (%) 98 | . 98 94 Engine 13 | . 13 14 Treads 26 | . 26 26 Device 13 | . 14 8 Storage 14 | . 14 14 Energy Cannon 2 | . 1 15 Ballistic Gun 23 | . 26 . Ballistic Cannon 1 | . . 10 Peak Build Rating 14 | 7 14 14 Average Rating 8 | 5 7 13 On Entrance 7 | . 7 14 Naked Turns . | . . . Heaviest Build 37 | 11 37 37 Greatest Support 40 | 40 40 40 Greatest Overweight (x) 2 | 2 1 1 Average Overweight (x) . | . . . Largest Inventory Capacity 15 | 8 15 15 Average Capacity 13 | 7 14 15 Most Carried 15 | 4 15 15 Average Carried 9 | 3 10 14 Final Capacity 15 | 8 15 15 Final Carried 15 | 4 15 12 Class Distribution -------------------- 100% | Mutant Dominant Class ---------------- Mutant | -10/Materials Mutant | -10/Mines Resources | -11 -10 -10 ----------- Run | Yrd Mat Min Matter Collected 395 | 213 171 11 Remotely . | . . . Salvage Created 328 | 29 217 82 Parts 13 | 1 12 . Haulers Intercepted . | . . . Recyclers Shooed . | . . . Parts Field Recycled . | . . . Retrieved Matter . | . . . Parts Self-Destructed . | . . . Prevented . | . . . Kills | -11 -10 -10 ------- Run | Yrd Mat Min Combat Hostiles Destroyed 23 | . 7 16 Guns 7 | . 7 . Cannons 3 | . . 3 AOE 13 | . . 13 Classes Destroyed 4 | 1 2 1 Tunneler 1 | 1 . . Swarmer 3 | . 3 . Grunt 4 | . 4 . Assembled 16 | . . 16 Best Kill Streak 16 | 1 3 16 Combat Bots Only 16 | . 3 16 Max Kills in Single Turn 5 | 1 1 5 Gunslinging . | . . . Exploded 5 | . . 5 Melee . | . . . Uniques/NPCs Destroyed . | . . . Combat | -11 -10 -10 -------- Run | Yrd Mat Min Hostile Shots Fired 98 | . 57 41 Missed 33 | . 20 13 Hits 65 | . 37 28 Melee 3 | . . 3 Projectile 62 | . 37 25 AOE 9 | . . 9 Damage Taken 1148 | . 387 761 Core 259 | . 64 195 Absorbed by Shields . | . . . Regen/Repaired (Parts) 74 | . 74 . Core Remaining (%) 100 | 100 . . Volleys Fired 46 | 4 28 14 Largest 2 | 2 2 2 Hottest 136 | 40 40 136 Shots Fired 86 | 8 56 22 Gun 64 | 8 56 . Cannon 17 | . . 17 Launcher 5 | . . 5 Special . | . . . Kinetic 71 | 8 56 7 Thermal 10 | . . 10 Explosive 5 | . . 5 Electromagnetic . | . . . Robot Hit Streak 12 | 7 12 6 Robot Miss Streak 6 | . 4 6 Penetration Max . | . . . Secondary Targets . | . . . Shots Hit Robots 53 | 7 37 9 Core Hits 50 | 2 17 31 Critical Kills 1 | . 1 . Critical Parts Destroyed 1 | 1 . . Critical Strikes 2 | 1 1 . Destroy 2 | 1 1 . Melee Attacks . | . . . Impact . | . . . Slashing . | . . . Piercing . | . . . Sneak Attacks . | . . . Combat Hostiles . | . . . Follow-up Attacks . | . . . Damage Inflicted 1269 | 55 342 872 Guns 393 | 55 338 . Cannons 169 | . . 169 Explosions 703 | . . 703 Melee . | . . . Ramming 4 | . 4 . Kinetic 480 | 55 338 87 Thermal 82 | . . 82 Explosive 703 | . . 703 Electromagnetic . | . . . Impact . | . . . Slashing . | . . . Piercing . | . . . Highest Corruption . | . . . Average Corruption . | . . . Corruption Purged . | . . . Corruption Blocked . | . . . Overload Shots . | . . . Overflow Damage 14 | . . 14 Projectiles . | . . . Explosions 14 | . . 14 Melee . | . . . Knockbacks 1 | . . 1 Impact . | . . . Kinetic 1 | . . 1 Secondary . | . . . Self-Inflicted Damage 129 | . . 129 Shots 4 | . . 4 Rammed 1 | . 1 . Targets Rammed 1 | . 1 . Kicked . | . . . Crushed . | . . . Highest Temperature 252 | . 18 252 Average Temperature 83 | . 8 123 Received Heat Transfer 181 | . 141 40 Siege Activations . | . . . Martial Activations . | . . . Shielding Activations . | . . . Robots Disrupted . | . . . Combat Hostiles . | . . . Robots Corrupted . | . . . Combat Hostiles . | . . . Parts Fried . | . . . Impact Corruptions . | . . . Robots Melted . | . . . Combat Hostiles . | . . . Parts Melted . | . . . Heat Transferred 148 | . . 148 Parts Sabotaged . | . . . Parts Stolen . | . . . Parts Stripped . | . . . Power Chain Reactions . | . . . Alert | -11 -10 -10 ------- Run | Yrd Mat Min Maximum Alert Level . | . . . Low Security (%) 100 | 100 100 100 Level 1 . | . . . Level 2 . | . . . Level 3 . | . . . Level 4 . | . . . Level 5 . | . . . High Security . | . . . Max Security . | . . . Peak Influence 60 | 5 60 22 Initial 3 | . 3 . Average 9 | . 11 4 Influence Increases 229 | 5 201 23 Destroy 0b10 Robot/C 140 | . 140 . Destroy 0b10 Robot/NC 5 | 5 . . Destroy Leader 20 | . 20 . Successful Hack 11 | . 11 . Destroy Structure 23 | . . 23 Partial Spotted 15 | . 15 . Lose Combat Pursuer 15 | . 15 . Influence Decreases 229 | . 206 23 Entered New Map 2 | . 2 . Time Decay 204 | . 194 10 Lost Part 23 | . 10 13 Squads Dispatched 1 | . 1 . Investigation . | . . . Extermination . | . . . Reinforcement 1 | . 1 . Assault . | . . . Garrison . | . . . Intercept . | . . . Searches Triggered . | . . . Construction Impeded . | . . . Haulers Reinforced . | . . . Active Scanning Responses . | . . . Cargo Convoy Interrupts . | . . . Stealth | -11 -10 -10 --------- Run | Yrd Mat Min Distress Signals 1 | . 1 . Communications Jammed . | . . . Distress Signals . | . . . Times Spotted 37 | . 17 20 Peak Tracking Total 19 | . 4 19 Tactical Retreats 2 | . 1 1 Traps | -11 -10 -10 ------- Run | Yrd Mat Min Traps Triggered 1 | . 1 . Indirectly . | . . . Trap Hack Attempts . | . . . Triggered . | . . . Disarmed . | . . . Reprogrammed . | . . . Reused . | . . . Traps Extracted . | . . . Installed . | . . . Triggered . | . . . Machines | -11 -10 -10 ---------- Run | Yrd Mat Min Machines Disabled . | . . . Max in Single Turn . | . . . Machines Repaired . | . . . Machines Dismantled . | . . . Machines Sabotaged . | . . . Overloaded Fab Kills . | . . . Hacking | -11 -10 -10 --------- Run | Yrd Mat Min Machines Accessed 5 | . 5 . Terminals 3 | . 3 . Fabricators . | . . . Repair Stations 1 | . 1 . Recycling Units 1 | . 1 . Scanalyzers . | . . . Garrison Access . | . . . Total Hacks 11 | . 11 . Successful 6 | . 6 . Failed 5 | . 5 . Catastrophic . | . . . Database Lockouts . | . . . Manual 6 | . 6 . Terminals 8 | . 8 . Fabricators . | . . . Repair Stations 2 | . 2 . Recycling Units 1 | . 1 . Scanalyzers . | . . . Garrison Access . | . . . Terminal Hacks 1 | . 1 . Locate Traps 1 | . 1 . Fabricator Hacks . | . . . Repair Station Hacks 2 | . 2 . Scan Component 1 | . 1 . Repair 1 | . 1 . Recycling Unit Hacks 1 | . 1 . Report Inventory 1 | . 1 . Scanalyzer . | . . . Garrison Access Hacks . | . . . Unauthorized Hacks 2 | . 2 . Terminals 2 | . 2 . Botnet 2 | . 2 . Fabricators . | . . . Repair Stations . | . . . Recycling Units . | . . . Scanalyzers . | . . . Garrison Access . | . . . Data Cores Recovered . | . . . Used . | . . . Hacking Detections 4 | . 4 . Full Trace Events . | . . . Feedback Events . | . . . Feedback Blocked . | . . . Robot Schematics Acquired . | . . . Robots Built . | . . . Authchips . | . . . Time . | . . . Total Robot Build Rating . | . . . Part Schematics Acquired . | . . . Parts Built . | . . . Authchips . | . . . Time . | . . . Total Part Build Rating . | . . . Parts Repaired 1 | . 1 . Time 26 | . 26 . Parts Recycled . | . . . Recycled Matter . | . . . Retrieved Matter . | . . . Retrieved Components . | . . . Parts Scanalyzed . | . . . Part Schematics Acquired . | . . . Parts Damaged . | . . . Bothacking | -11 -10 -10 ------------ Run | Yrd Mat Min Used RIF Installer . | . . . Robots Hacked . | . . . Non-combat . | . . . Combat . | . . . Robot Hacks Applied . | . . . Relay Couplers Released . | . . . Fabnet Peak Effective % . | . . . Robots Rewired . | . . . Allies Hacked . | . . . Hacks Repelled . | . . . Allies | -11 -10 -10 -------- Run | Yrd Mat Min Total Allies . | . . . Largest Group . | . . . Highest-Rated Group . | . . . Highest-Rated Ally . | . . . Total Orders . | . . . Ally Attacks . | . . . Total Damage . | . . . Kills . | . . . Allies Corrupted . | . . . Allies Melted . | . . . Intel | -11 -10 -10 ------- Run | Yrd Mat Min Active Infowar (turns) 879 | 11 836 32 Seismic 879 | 11 836 32 Robot Analysis Total . | . . . Derelict Logs Recovered . | . . . Drone Launches . | . . . Drone Recoveries . | . . . Exploration | -11 -10 -10 ------------- Run | Yrd Mat Min Turns Passed 1001 | 98 836 67 Spaces Moved 485 | 49 420 16 Core 12 | 12 . . Treads 473 | 37 420 16 Legs . | . . . Wheels . | . . . Hover . | . . . Flight . | . . . Fastest Speed 50 | 50 160 160 Average Speed 164 | 149 166 165 Slowest Speed 240 | 160 240 240 Overloaded Moves . | . . . Propulsion Burnouts . | . . . Robots Hopped . | . . . Potential Cave-ins . | . . . Cave-ins Triggered . | . . . Exploration Rate (%) 21 | 5 52 7 Regions Visited 2 Branch Regions 1 Pre-discovered Areas . | . . . Known Exits Taken . | . . . Unknown Exits Taken 2 | 1 1 . Scrap Searched . | . . . Spaces Dug . | . . . Terrain Destroyed 34 | . . 34 Melee . | . . . Projectile 1 | . . 1 AOE 33 | . . 33 Terrain Rammed . | . . . Walls Destroyed . | . . . Machines Disabled . | . . . Actions | -11 -10 -10 --------- Run | Yrd Mat Min Total 611 | 64 512 35 Wait 35 | 1 34 . Move 483 | 48 419 16 Hop . | . . . Pick Up 18 | 4 14 . Fast Attach 13 | 7 6 . Attach 4 | . 1 3 Detach . | . . . Swap 4 | . 2 2 Drop 7 | . 7 . Fire 46 | 4 28 14 Melee . | . . . Ram . | . . . Kick . | . . . Crush 1 | . 1 . Escape Stasis . | . . . Rewire . | . . . Trap . | . . . Miscellaneous . | . . . Route ------- -11/Scrapyard -10/Materials (discovered 3 exits: [*Mat x2] / [*Min]) -10/Mines History --------- Turn | Location | Event 32 | -11/Scrapyard | Discovered new exit (range 13) 99 | -11/Scrapyard | Entered Materials 301 | -10/Materials | Build established: Mutant 434 | -10/Materials | Repaired Lgt. Treads? 514 | -10/Materials | Discovered new exit (range 3) 731 | -10/Materials | Discovered new exit (range 5) 861 | -10/Materials | Discovered new exit (range 8) 935 | -10/Materials | Entered Mines 936 | -10/Mines | Assembled infested the area 941 | -10/Mines | Assisted by a Guerilla fighting off Assembled 981 | -10/Mines | Core integrity fell below 50% 999 | -10/Mines | Core integrity fell below 20% 1000 | -10/Mines | Destroyed 16 combat bots 1002 | -10/Mines | Destroyed by D-53 Grenadier with Mini Grenade Launcher Last Messages --------------- 00965_ as-91264 destroyed. 00965_ Destroyed Asb. Hover Unit. 00967_ Seismic Detector destroyed. 00967_ Destroyed Asb. Hover Unit. 00967_ as-54533 destroyed. 00973_ as-25467 destroyed. 00976_ as-33968 destroyed. [Achievement: Exterminator] 00976_ Seismic Survey Station disabled. 00979_ as-55374 destroyed. 00980_ The unstable cave ceiling collapses. 00982_ as-37008 knocked back. 00990_ The unstable cave ceiling collapses. 00991_ C-30 ARC bursts open, deploying its payload. 00991_ D-53 Grenadier unfolds itself. 00991_ as-93967 destroyed. 00992_ Lgt. Treads destroyed. 00996_ Imp. Light Cannon destroyed. 01001_ The unstable cave ceiling collapses. Map ----- +----------------------------------------------------+ | ???????????????????????????????? | | ???????????????????????????????? | | ???????????????????????????????? | | ???????????????????????????????? | | ???????????????????????????????? | | ???????????????????????????????? | | ???????????????????????????????? | | ???????????????????????????????? | | ???????????????????????????????? | | ???????????????????????????????? | | ???????????# ??????????????????? | | ??????????# ??????????????????? | | ?????????# ??????????????????? | | ????????# ??????????????????? | | ???????# #??????????????????? | | ??????? #??????????????????? | | ??????? #?????? ??????????? | | ???????" ##???? ??????????? | | ???????# #### ???????????? | | ???????# % ?????????????? | | ????#### a rd ???????????????? | | ???## d% #????????????????? | | ??## # r #????????????????? | | ??# #????????????????? | | ??# #????????????????? | | ??# @ #????????????????? | | ??# ###????????????????? | | ?# #?????????????????? | | ?## #?????????????????? | | ??## ##?????????????????? | | ??? = #??????????????????? | | ??# ## "%*#??????????????????? | | ??##?# "=%#??????????????????? | | ?????# ]#??????????????????? | | ?????# #??????????????????? | | ?????# #??????????????????? | | ?????# #??????????????????? | | ?????########??????????????????? | | ???????????????????????????????? | | ???????????????????????????????? | | ???????????????????????????????? | | ???????????????????????????????? | | ???????????????????????????????? | | ???????????????????????????????? | | ???????????????????????????????? | | ???????????????????????????????? | | ???????????????????????????????? | | ???????????????????????????????? | | ???????????????????????????????? | | ???????????????????????????????? | +----------------------------------------------------+ Best States ------------- Heat Dissipation 35 Energy Generation 14 Energy Capacity 280 Matter Stores 300 Matter Capacity 300 Sight Range 16 Terrain Scan Density 10 Evasion (%) 40 Recoil Reduction 2 Item Schematics ----------------- None Robot Schematics ------------------ None Fabricated ------------ Nothing Repaired ---------- Lgt. Treads | 47% | -10/Materials Alien Tech Used ----------------- None Achievements -------------- Exterminator Challenges ------------ None Game ------ Seed CooledImprovedMicroactuators Manual? 0 Play Time 00:12:34 Cumulative 107.0 hours Start 2025.07.27 @ 15:53:50 End 2025.07.27 @ 16:07:01 Sessions 1 Manual Loads 0 Difficulty Rogue Special Mode None Game No. 72 Rogue 72 Adventurer 0 Explorer 0 Win Type - Total 0 Types 0/0/0/0/0/0/0/0/0/0 Lore% 48 Gallery% 41 Achievement% 34 Wizard Run 0 Options --------- Layout 1 ASCII 0 Keyboard 0 Movement Numpad Keybinds 0 Fullscreen 1 Font 24/Smallcaps Map View 50x35 Zoom Use 0% Tactical HUD 1 Map Filters NONE Filters NONE Steam 1 RUN: 736c346e-5463-4ffa-8713-ef5580e36c6b